fUST/lending_fUST_20240813
["ID","MTS","AMOUNT","RATE_DAILY","PERIOD"]
[334785808,1723561845112,-500.0,0.00013698,2]
[334785809,1723561845124,-500.0,0.00013698,2]
[334785810,1723561845134,-737.6,0.00013698,2]
[334785811,1723561845144,-500.0,0.00013698,2]
[334785812,1723561845157,-631.47498351,0.00013698,2]
[334785813,1723561845167,-500.0,0.00013698,2]
[334785814,1723561845178,-500.0,0.00013698,2]
[334785815,1723561845191,-537.09112232,0.00013698,2]
[334785816,1723561845202,-1509.02,0.00013698,2]
[334785817,1723561845212,-512.12221757,0.00013698,2]
[334785818,1723561845223,-500.0,0.00013698,2]
[334785819,1723561845233,-518.10187527,0.00013698,2]
[334785820,1723561845244,-500.0,0.00013698,2]
[334785821,1723561845255,-500.0,0.00013698,2]
[334785822,1723561845266,-1050.19,0.00013698,2]
[334785823,1723561845278,-504.58301167,0.00013698,2]
[334785824,1723561845288,-500.0,0.00013698,2]
[334785825,1723561845300,-504.90662939,0.00013698,2]
[334785826,1723561845311,-500.0,0.00013698,2]
[334785827,1723561845323,-500.0,0.00013698,2]
[334785828,1723561845337,-506.73503378,0.00013698,2]
[334785829,1723561845349,-506.45694896,0.00013698,2]
[334785830,1723561845360,-507.34383413,0.00013698,2]
[334785831,1723561845371,-502.96860766,0.00013698,2]
[334785832,1723561845381,-500.0,0.00013698,2]
[334785833,1723561845394,-235.05888984,0.00013698,2]
[334785834,1723561845407,-500.0,0.00013698,2]
[334785835,1723561845420,-518.15476045,0.00013698,2]
[334785836,1723561845432,-395.18494103,0.00013698,2]
[334785837,1723561845445,-503.91010508,0.00013698,2]
[334785838,1723561845461,-500.0,0.00013698,2]
[334785839,1723561845472,-505.59683593,0.00013698,2]
[334785840,1723561845484,-500.0,0.00013698,2]
[334785841,1723561845497,-500.0,0.00013698,2]
[334785842,1723561845510,-500.0,0.00013698,2]
[334785843,1723561845522,-501.41,0.00013698,2]
[334785844,1723561845534,-500.0,0.00013698,2]
[334785845,1723561845548,-500.0,0.00013698,2]
[334785846,1723561845560,-500.0,0.00013698,2]
[334785847,1723561845572,-500.45252489,0.00013698,2]
[334785848,1723561845585,-257.1212263,0.00013698,2]
[334785849,1723561845597,-500.0,0.00013698,2]
[334785850,1723561845609,-500.0,0.00013698,2]
[334785851,1723561845621,-500.0,0.00013698,2]
[334785852,1723561845633,-500.0,0.00013698,2]
[334785853,1723561845643,-500.0,0.00013698,2]
[334785854,1723561845654,-501.34584591,0.00013698,2]
[334785855,1723561845666,-500.0,0.00013698,2]
[334785856,1723561845679,-500.0,0.00013698,2]
[334785857,1723561845690,-500.0,0.00013698,2]
[334785858,1723561845703,-500.0,0.00013698,2]
[334785859,1723561845716,-482.43252552,0.00013698,2]
[334785860,1723561845728,-500.0,0.00013698,2]
[334785861,1723561845741,-500.0,0.00013698,2]
[334785862,1723561845753,-500.0,0.00013698,2]
[334785863,1723561845765,-500.0,0.00013698,2]
[334785864,1723561845778,-500.0,0.00013698,2]
[334785865,1723561845790,-500.0,0.00013698,2]
[334785866,1723561845801,-623.2,0.00013698,2]
[334785867,1723561845812,-500.0,0.00013698,2]
[334785868,1723561845825,-500.0,0.00013698,2]
[334785869,1723561845837,-500.0,0.00013698,2]
[334785870,1723561845847,-500.0,0.00013698,2]
[334785871,1723561845859,-500.0,0.00013698,2]
[334785872,1723561845870,-500.0,0.00013698,2]
[334785873,1723561845881,-500.0,0.00013698,2]
[334785874,1723561845892,-696.95,0.00013698,2]
[334785875,1723561845903,-500.0,0.00013698,2]
[334785876,1723561845915,-500.0,0.00013698,2]
[334785877,1723561845928,-500.0,0.00013698,2]
[334785878,1723561845940,-503.80614927,0.00013698,2]
[334785879,1723561845950,-533.72,0.00013698,2]
[334785880,1723561845960,-634.66,0.00013698,2]
[334785881,1723561845974,-500.0,0.00013698,2]
[334785882,1723561845985,-500.0,0.00013698,2]
[334785883,1723561845996,-2182.07,0.00013698,2]
[334785884,1723561846008,-2182.07,0.00013698,2]
[334785885,1723561846021,-2182.07,0.00013698,2]
[334785886,1723561846033,-2182.07,0.00013698,2]
[334785887,1723561846044,-2182.07,0.00013698,2]
[334785888,1723561846056,-2182.07,0.00013698,2]
[334785889,1723561846067,-2182.07,0.00013698,2]
[334785890,1723561846078,-2182.07,0.00013698,2]
[334785891,1723561846089,-2182.07,0.00013698,2]
[334785893,1723561846101,-2182.07,0.00013698,2]
[334785894,1723561846112,-2182.07,0.00013698,2]
[334785895,1723561846124,-2182.07,0.00013698,2]
[334785896,1723561846136,-2182.07,0.00013698,2]
[334785897,1723561846147,-2182.07,0.00013698,2]
[334785898,1723561846159,-2182.07,0.00013698,2]
[334785899,1723561846170,-2182.07,0.00013698,2]
[334785900,1723561846182,-500.0,0.00013698,2]
[334785901,1723561846193,-500.0,0.00013698,2]
[334785902,1723561846204,-500.0,0.00013698,2]
[334785903,1723561846215,-842.95,0.00013698,2]
[334785904,1723561846227,-500.0,0.00013698,2]
[334785905,1723561846240,-500.0,0.00013698,2]
[334785906,1723561846252,-628.91,0.00013698,2]
[334785907,1723561846264,-470.70017869,0.00013698,2]
[334785909,1723561846277,-235.25922829,0.00013698,2]
[334785910,1723561846295,-514.28873313,0.00013698,2]
[334785911,1723561846305,-500.0,0.00013698,2]
[334785912,1723561846314,-1092.04,0.00013698,2]
[334785913,1723561846497,-500.0,0.00013698,2]
[334785914,1723561846515,-500.0,0.00013698,2]
[334785915,1723561846528,-500.0,0.00013698,2]
[334785916,1723561846539,-752.15,0.00013698,2]
[334785917,1723561846548,-500.0,0.00013698,2]
[334785918,1723561846557,-507.37735056,0.00013698,2]
[334785919,1723561846568,-1493.3,0.00013698,2]
[334785920,1723561846578,-1200.67,0.00013698,2]
[334785921,1723561846588,-500.0,0.00013698,2]
[334785922,1723561846598,-158.90983671,0.00013698,2]
[334785923,1723561846608,-1165.94,0.00013698,2]
[334785924,1723561846617,-500.0,0.00013698,2]
[334785925,1723561846627,-500.0,0.00013698,2]
[334785926,1723561846636,-2299.28,0.00013698,2]
[334785927,1723561846646,-633.21,0.00013698,2]
[334785928,1723561846656,-500.0,0.00013698,2]
[334785929,1723561846665,-500.0,0.00013698,2]
[334785930,1723561846674,-500.0,0.00013698,2]
[334785931,1723561846684,-679.89,0.00013698,2]
[334785932,1723561846694,-752.78,0.00013698,2]
[334785933,1723561846703,-500.0,0.00013698,2]
[334785934,1723561846713,-633.94,0.00013698,2]
[334785935,1723561846723,-5690.34,0.00013698,2]
[334785936,1723561846733,-500.0,0.00013698,2]
[334785937,1723561846742,-500.0,0.00013698,2]
[334785939,1723561846752,-500.0,0.00013698,2]
[334785941,1723561846762,-947.43,0.00013698,2]
[334785943,1723561846774,-505.56303483,0.00013698,2]
[334785945,1723561846783,-692.14,0.00013698,2]
[334785947,1723561846793,-500.0,0.00013698,2]
[334785949,1723561846803,-500.0,0.00013698,2]
[334785950,1723561846812,-500.0,0.00013698,2]
[334785952,1723561846822,-500.0,0.00013698,2]
[334785954,1723561846831,-500.0,0.00013698,2]
[334785956,1723561846841,-1698.43,0.00013698,2]
[334785958,1723561846851,-500.0,0.00013698,2]
[334785960,1723561846861,-642.42,0.00013698,2]
[334785961,1723561846870,-653.31,0.00013698,2]
[334785963,1723561846880,-500.0,0.00013698,2]
[334785965,1723561846889,-500.0,0.00013698,2]
[334785967,1723561846899,-500.0,0.00013698,2]
[334785969,1723561846909,-500.0,0.00013698,2]
[334785971,1723561846918,-500.0,0.00013698,2]
[334785972,1723561846928,-500.0,0.00013698,2]
[334785974,1723561846938,-862.79,0.00013698,2]
[334785976,1723561846947,-304.98898775,0.00013698,2]
[334785978,1723561846956,-500.0,0.00013698,2]
[334785980,1723561846966,-500.0,0.00013698,2]
[334785981,1723561846975,-744.44,0.00013698,2]
[334785983,1723561846985,-675.84,0.00013698,2]
[334785985,1723561846994,-500.0,0.00013698,2]
[334785986,1723561847004,-950.55,0.00013698,2]
[334785987,1723561847014,-500.0,0.00013698,2]
[334785989,1723561847025,-500.0,0.00013698,2]
[334785991,1723561847034,-500.0,0.00013698,2]
[334785993,1723561847043,-1390.61,0.00013698,2]
[334785994,1723561847052,-505.34168104,0.00013698,2]
[334785995,1723561847062,-500.0,0.00013698,2]
[334785996,1723561847071,-540.34874411,0.00013698,2]
[334785997,1723561847080,-500.0,0.00013698,2]
[334785998,1723561847089,-500.0,0.00013698,2]
[334785999,1723561847099,-500.0,0.00013698,2]
[334786000,1723561847108,-5576.29,0.00013698,2]
[334786001,1723561847118,-814.42,0.00013698,2]
[334786002,1723561847127,-500.0,0.00013698,2]
[334786003,1723561847137,-637.11,0.00013698,2]
[334786004,1723561847147,-500.0,0.00013698,2]
[334786005,1723561847156,-500.0,0.00013698,2]
[334786006,1723561847165,-500.0,0.00013698,2]
[334786007,1723561847175,-510.18680554,0.00013698,2]
[334786008,1723561847184,-1115.52,0.00013698,2]
[334786009,1723561847194,-500.0,0.00013698,2]
[334786010,1723561847203,-206.02511562,0.00013698,2]
[334786011,1723561847213,-508.09704504,0.00013698,2]
[334786012,1723561847223,-1134.55,0.00013698,2]
[334786013,1723561847232,-300.96958541,0.00013698,2]
[334786014,1723561847242,-509.99697858,0.00013698,2]
[334786015,1723561847252,-1006.9,0.00013698,2]
[334786016,1723561847261,-500.0,0.00013698,2]
[334786017,1723561847271,-502.39977827,0.00013698,2]
[334786018,1723561847282,-500.0,0.00013698,2]
[334786019,1723561847291,-500.0,0.00013698,2]
[334786020,1723561847301,-500.0,0.00013698,2]
[334786021,1723561847310,-500.0,0.00013698,2]
[334786022,1723561847319,-500.0,0.00013698,2]
[334786023,1723561847329,-557.19,0.00013698,2]
[334786024,1723561847338,-514.45262368,0.00013698,2]
[334786025,1723561847348,-500.0,0.00013698,2]
[334786026,1723561847357,-500.0,0.00013698,2]
[334786027,1723561847366,-509.83521635,0.00013698,2]
[334786028,1723561847376,-783.46,0.00013698,2]
[334786029,1723561847386,-769.66,0.00013698,2]
[334786030,1723561847396,-500.0,0.00013698,2]
[334786031,1723561847405,-500.0,0.00013698,2]
[334786032,1723561847415,-619.75,0.00013698,2]
[334786033,1723561847425,-503.56683525,0.00013698,2]
[334786034,1723561847435,-501.03037611,0.00013698,2]
[334786035,1723561847447,-1045.18,0.00013698,2]
[334786036,1723561847461,-502.15039408,0.00013698,2]
[334786037,1723561847472,-500.0,0.00013698,2]
[334786038,1723561847482,-500.0,0.00013698,2]
[334786039,1723561847491,-500.0,0.00013698,2]
[334786040,1723561847501,-500.0,0.00013698,2]
[334786041,1723561847511,-500.0,0.00013698,2]
[334786042,1723561847523,-500.0,0.00013698,2]
[334786043,1723561847534,-3073.27,0.00013698,2]
[334786044,1723561847545,-687.5,0.00013698,2]
[334786045,1723561847558,-4063.56,0.00013698,2]
[334786046,1723561847569,-590.91,0.00013698,2]
[334786047,1723561847580,-500.0,0.00013698,2]
[334786048,1723561847590,-953.23,0.00013698,2]
[334786049,1723561847600,-500.0,0.00013698,2]
[334786050,1723561847610,-500.0,0.00013698,2]
[334786051,1723561847619,-500.6539124,0.00013698,2]
[334786052,1723561847629,-500.0,0.00013698,2]
[334786053,1723561847640,-502.8470233,0.00013698,2]
[334786054,1723561847650,-3290.28,0.00013698,2]
[334786055,1723561847662,-500.0,0.00013698,2]
[334786056,1723561847673,-500.0,0.00013698,2]
[334786057,1723561847683,-814.37,0.00013698,2]
[334786058,1723561847693,-1039.9,0.00013698,2]
[334786059,1723561847702,-167.81898824,0.00013698,2]
[334786060,1723561847863,-332.18101176,0.00013698,2]
[334786061,1723561847872,-859.19,0.00013698,2]
[334786062,1723561847882,-500.0,0.00013698,2]
[334786063,1723561847891,-500.0,0.00013698,2]
[334786064,1723561847900,-3524.18,0.00013698,2]
[334786065,1723561847910,-500.0,0.00013698,2]
[334786066,1723561847919,-1002.56,0.00013698,2]
[334786067,1723561847929,-286.74941357,0.00013698,2]
[334786068,1723561847939,-1296.42,0.00013698,2]
[334786069,1723561847948,-500.0,0.00013698,2]
[334786070,1723561847957,-500.0,0.00013698,2]
[334786071,1723561847967,-1006.27,0.00013698,2]
[334786072,1723561847976,-500.0,0.00013698,2]
[334786073,1723561847986,-500.0,0.00013698,2]
[334786074,1723561847995,-134.79382018,0.00013698,2]
[334786075,1723561848045,-365.20617982,0.00013698,2]
[334786076,1723561848054,-500.0,0.00013698,2]
[334786077,1723561848064,-309.52024362,0.00013698,2]
[334786078,1723561848073,-489.56585524,0.00013698,2]
[334786079,1723561848083,-500.0,0.00013698,2]
[334786080,1723561848093,-1109.93772133,0.00013698,2]
[334786081,1723561848106,-113.47227867,0.00013698,2]
[334786082,1723561848115,-500.0,0.00013698,2]
[334786083,1723561848125,-886.67,0.00013698,2]
[334786084,1723561848136,-510.88917413,0.00013698,2]
[334786085,1723561848146,-557.19,0.00013698,2]
[334786086,1723561848155,-500.0,0.00013698,2]
[334786087,1723561848165,-500.0,0.00013698,2]
[334786088,1723561848175,-500.0,0.00013698,2]
[334786089,1723561848185,-601.48,0.00013698,2]
[334786090,1723561848194,-500.0,0.00013698,2]
[334786091,1723561848203,-504.50337806,0.00013698,2]
[334786092,1723561848213,-500.0,0.00013698,2]
[334786093,1723561848223,-500.0,0.00013698,2]
[334786094,1723561848232,-500.0,0.00013698,2]
[334786095,1723561848242,-503.63344452,0.00013698,2]
[334786096,1723561848251,-5305.442172,0.00013699,2]
[334786097,1723561848261,-24672.8748664,0.00013699,2]
[334786098,1723561848273,-3000.0,0.00013699,2]
[334786099,1723561848282,-306.0,0.00013699,2]
[334786100,1723561848291,-153.0,0.00013699,2]
[334786101,1723561848300,-207.3665351,0.00013699,2]
[334786102,1723561848310,-153.0,0.00013699,2]
[334786103,1723561848320,-153.0,0.00013699,2]
[334786104,1723561848330,-2974.16663055,0.00013699,2]
[334786105,1723561848339,-2974.16663055,0.00013699,2]
[334786106,1723561848349,-2974.16663055,0.00013699,2]
[334786107,1723561848359,-2974.16663055,0.00013699,2]
[334786108,1723561848369,-2974.16663055,0.00013699,2]
[334786109,1723561848380,-2974.16663055,0.00013699,2]
[334786110,1723561848389,-2974.16663055,0.00013699,2]
[334786111,1723561848399,-2974.16663055,0.00013699,2]
[334786112,1723561848409,-2974.16663055,0.00013699,2]
[334786113,1723561848418,-2974.16663055,0.00013699,2]
[334786114,1723561848428,-2974.16663055,0.00013699,2]
[334786115,1723561848437,-2974.16663055,0.00013699,2]
[334786116,1723561848449,-2974.16663055,0.00013699,2]
[334786117,1723561848460,-2974.16663052,0.00013699,2]
[334786118,1723561848469,-150.112233,0.000137,2]
[334786119,1723561848479,-150.0,0.00013768,2]
[334786120,1723561848488,-216.31,0.00013768,2]
[334786121,1723561848498,-150.0,0.00013768,2]
[334786122,1723561848508,-508.0,0.00013768,2]
[334786123,1723561848518,-1413.0,0.00013768,2]
[334786124,1723561848530,-5323.40502986,0.00013836,2]
[334786125,1723561848540,-153.0,0.00013838,2]
[334786126,1723561848549,-153.0,0.00013838,2]
[334786127,1723561848559,-153.0,0.00013838,2]
[334786128,1723561848568,-153.0,0.00013838,2]
[334786129,1723561848579,-153.0,0.00013838,2]
[334786130,1723561848589,-153.0,0.00013838,2]
[334786131,1723561848599,-290.84316921,0.00013875,2]
[334786132,1723561848609,-465.02914644,0.00013892,2]
[334786133,1723561848619,-2182.07,0.0001396,2]
[334786134,1723561848628,-2182.07,0.00013961,2]
[334786135,1723561848638,-2182.07,0.00013971,2]
[334786136,1723561848647,-2182.07,0.00013971,2]
[334786137,1723561848656,-2182.07,0.00013971,2]
[334786138,1723561848666,-2182.07,0.00013971,2]
[334786139,1723561848676,-2182.07,0.00013971,2]
[334786140,1723561848685,-2182.10948115,0.00013971,2]
[334786141,1723561848695,-500.0,0.00013972,2]
[334786142,1723561848705,-500.0,0.00013972,2]
[334786143,1723561848715,-681.31,0.00013972,2]
[334786144,1723561848724,-500.0,0.00013972,2]
[334786145,1723561848734,-500.0,0.00013972,2]
[334786146,1723561848744,-508.89044468,0.00013972,2]
[334786147,1723561848753,-500.0,0.00013972,2]
[334786148,1723561848763,-500.0,0.00013972,2]
[334786149,1723561848773,-486.45266825,0.00013972,2]
[334786150,1723561848783,-515.99551299,0.00013972,2]
[334786151,1723561848793,-500.0,0.00013972,2]
[334786152,1723561848803,-500.0,0.00013972,2]
[334786153,1723561848812,-500.0,0.00013972,2]
[334786154,1723561848822,-500.0,0.00013972,2]
[334786155,1723561848831,-500.0,0.00013972,2]
[334786156,1723561848841,-173.907888,0.00013972,2]
[334786157,1723561848852,-1610.7,0.00013972,2]
[334786158,1723561848862,-151.0,0.00013972,2]
[334786159,1723561848871,-151.0,0.00013972,2]
[334786160,1723561848881,-580.86,0.00013972,2]
[334786161,1723561848890,-500.0,0.00013972,2]
[334786162,1723561848900,-151.0,0.00013972,2]
[334786163,1723561848910,-500.0,0.00013972,2]
[334786164,1723561848921,-760.24,0.00013972,2]
[334786165,1723561848931,-500.0,0.00013972,2]
[334786166,1723561848941,-151.0,0.00013972,2]
[334786167,1723561848950,-500.0,0.00013972,2]
[334786168,1723561848960,-517.12,0.00013972,2]
[334786169,1723561848970,-500.0,0.00013972,2]
[334786170,1723561848981,-500.0,0.00013972,2]
[334786171,1723561848991,-151.0,0.00013972,2]
[334786172,1723561849001,-503.22,0.00013972,2]
[334786173,1723561849012,-500.0,0.00013972,2]
[334786174,1723561849024,-500.0,0.00013972,2]
[334786175,1723561849033,-500.0,0.00013972,2]
[334786176,1723561849043,-500.0,0.00013972,2]
[334786177,1723561849053,-500.0,0.00013972,2]
[334786178,1723561849062,-737.6,0.00013972,2]
[334786179,1723561849071,-1509.02,0.00013972,2]
[334786180,1723561849081,-151.0,0.00013972,2]
[334786181,1723561849091,-500.0,0.00013972,2]
[334786182,1723561849101,-500.0,0.00013972,2]
[334786183,1723561849111,-1050.19,0.00013972,2]
[334786184,1723561849120,-500.0,0.00013972,2]
[334786185,1723561849130,-246.74369,0.00013972,2]
[334786186,1723561849140,-246.74369,0.00013972,2]
[334786187,1723561849150,-500.0,0.00013972,2]
[334786188,1723561849159,-500.0,0.00013972,2]
[334786189,1723561849169,-602.782419,0.00013972,2]
[334786190,1723561849179,-501.41,0.00013972,2]
[334786191,1723561849190,-602.782419,0.00013972,2]
[334786192,1723561849199,-500.0,0.00013972,2]
[334786193,1723561849209,-500.0,0.00013972,2]
[334786194,1723561849219,-151.0,0.00013972,2]
[334786195,1723561849229,-500.0,0.00013972,2]
[334786196,1723561849239,-500.0,0.00013972,2]
[334786197,1723561849249,-367.12412063,0.00013972,2]
[334786198,1723561849259,-500.0,0.00013972,2]
[334786199,1723561849269,-500.0,0.00013972,2]
[334786200,1723561849283,-500.0,0.00013972,2]
[334786201,1723561849292,-500.0,0.00013972,2]
[334786202,1723561849302,-500.0,0.00013972,2]
[334786203,1723561849312,-500.0,0.00013972,2]
[334786204,1723561849322,-499.798744,0.00013972,2]
[334786205,1723561849333,-500.0,0.00013972,2]
[334786206,1723561849343,-499.798744,0.00013972,2]
[334786207,1723561849353,-500.0,0.00013972,2]
[334786208,1723561849363,-592.53499054,0.00013972,2]
[334786223,1723562549780,1000.0,0.00025,60]
[334786226,1723562733157,-877.22091144,9.999e-05,2]
[334786227,1723562733179,-156.78430753,9.999e-05,2]
[334786228,1723562733201,-180.67948358,9.999e-05,2]
[334786229,1723562733222,-157.00320308,9.999e-05,2]
[334786230,1723562733421,-694.90272385,9.999e-05,2]
[334786231,1723562733445,-154.76012181,9.999e-05,2]
[334786232,1723562733468,-898.03401982,9.999e-05,2]
[334786233,1723562733492,-601.50902274,9.999e-05,2]
[334786234,1723562733515,-403.97807828,9.999e-05,2]
[334786235,1723562733537,-154.76012181,9.999e-05,2]
[334786236,1723562733559,-154.76012181,9.999e-05,2]
[334786237,1723562733581,-154.76012181,9.999e-05,2]
[334786238,1723562733604,-520.25072733,9.999e-05,2]
[334786239,1723562733625,-210.10628593,9.999e-05,2]
[334786240,1723562733647,-241.08007801,9.999e-05,2]
[334786241,1723562733668,-174.72672334,9.999e-05,2]
[334786242,1723562733691,-165.7378718,9.999e-05,2]
[334786243,1723562733713,-196.69322642,9.999e-05,2]
[334786244,1723562733734,-154.76012181,9.999e-05,2]
[334786245,1723562733756,-154.79102903,0.0001,2]
[334786246,1723562733780,-154.76012181,0.0001,2]
[334786247,1723562733802,-413.41235077,0.0001,2]
[334786248,1723562733824,-288.10768054,0.0001,2]
[334786249,1723562733848,-154.76012181,0.0001,2]
[334786250,1723562733869,-826.02,0.00010959,2]
[334786251,1723562733894,-24900.0,0.00012304,2]
[334786252,1723562733915,-500.0,0.00012986,2]
[334786253,1723562733937,-1000.0,0.00013,2]
[334786254,1723562733961,-2232.89682518,0.00013573,2]
[334786255,1723562733983,-200.0,0.00013673,2]
[334786256,1723562734005,-200.0,0.00013673,2]
[334786257,1723562734031,-16607.52562351,0.00013688,2]
[334786258,1723562852105,-817.13111103,0.0001,2]
[334786259,1723562852131,-24900.0,0.00012698,2]
[334786260,1723562852156,-3113.43690267,0.00013688,2]
[334786261,1723562852180,-3612.54647884,0.00013688,2]
[334786262,1723562852204,-16305.56528498,0.00013688,2]
[334786263,1723562852227,-1413.50508387,0.00013688,2]
[334786264,1723562852248,-158.63524894,0.00013688,2]
[334786265,1723562852269,-2111.27572321,0.00013688,2]
[334786266,1723562852293,-16321.04986291,0.00013688,2]
[334786267,1723562852315,-1670.74719108,0.00013688,2]
[334786268,1723562852337,-3606.1291612,0.00013688,2]
[334786269,1723562852363,-1670.74719108,0.00013688,2]
[334786270,1723562852388,-179575.02208949,0.00013688,2]
[334786271,1723562852415,-12959.03818856,0.00013688,2]
[334786272,1723562852444,-41849.59560625,0.00013689,2]
[334786274,1723562952243,-568.56884199,9.999e-05,2]
[334786275,1723562952268,-728.34861839,9.999e-05,2]
[334786276,1723562952290,-534.3800288,9.999e-05,2]
[334786277,1723562952312,-728.34861839,9.999e-05,2]
[334786278,1723562952334,-319.99782942,9.999e-05,2]
[334786279,1723562952358,-183.14562753,9.999e-05,2]
[334786280,1723562952380,-155.05697575,9.999e-05,2]
[334786281,1723562952403,-154.76012181,9.999e-05,2]
[334786282,1723563010329,154.72922386,9.999e-05,2]
[334786283,1723563019179,728.34861839,0.0001212,2]
[334786284,1723563026443,154.76012181,9.999e-05,2]
[334786359,1723563032581,-1953.78472205,0.00013588,2]
[334786360,1723563032594,-27566.27562889,0.00013598,2]
[334786361,1723563032604,-10344.93468852,0.00013688,2]
[334786362,1723563035921,154.72922386,0.00012119,2]
[334786363,1723563036020,159.38116829,9.999e-05,2]
[334786401,1723563038311,-5631.63375248,0.00013688,2]
[334786402,1723563038331,-21773.63654033,0.00013688,2]
[334786426,1723563040142,-129880.48175467,0.00013688,2]
[334786428,1723563040153,-55876.8955787,0.00013689,2]
[334786430,1723563040163,-6479.51909428,0.00013698,2]
[334786431,1723563040174,-500.0,0.00013698,2]
[334786432,1723563040185,-500.0,0.00013698,2]
[334786433,1723563040197,-500.0,0.00013698,2]
[334786434,1723563040208,-500.0,0.00013698,2]
[334786435,1723563040222,-500.0,0.00013698,2]
[334786436,1723563040234,-354.08086517,0.00013698,2]
[334786437,1723563040245,-500.0,0.00013698,2]
[334786438,1723563040256,-500.0,0.00013698,2]
[334786439,1723563040266,-446.51224702,0.00013698,2]
[334786440,1723563040275,-500.0,0.00013698,2]
[334786441,1723563040285,-500.0,0.00013698,2]
[334786442,1723563040295,-500.0,0.00013698,2]
[334786443,1723563040304,-500.0,0.00013698,2]
[334786444,1723563040314,-163.73768466,0.00013698,2]
[334786445,1723563040324,-500.0,0.00013698,2]
[334786446,1723563040335,-500.0,0.00013698,2]
[334786447,1723563040349,-500.0,0.00013698,2]
[334786448,1723563040362,-500.0,0.00013698,2]
[334786449,1723563040375,-500.0,0.00013698,2]
[334786450,1723563040390,-500.0,0.00013698,2]
[334786451,1723563040402,-500.0,0.00013698,2]
[334786452,1723563040413,-351.19794581,0.00013698,2]
[334786453,1723563040427,-197.26165157,0.00013698,2]
[334786454,1723563040441,-512.18068449,0.00013698,2]
[334786455,1723563040456,-500.0,0.00013698,2]
[334786456,1723563040471,-500.0,0.00013698,2]
[334786457,1723563040486,-544.29753015,0.00013698,2]
[334786458,1723563040498,-495.15092968,0.00013698,2]
[334786459,1723563040509,-258.20629048,0.00013698,2]
[334786460,1723563040521,-544.29753015,0.00013698,2]
[334786461,1723563040534,-544.29753015,0.00013698,2]
[334786462,1723563040546,-544.29753015,0.00013698,2]
[334786463,1723563040558,-544.29753015,0.00013698,2]
[334786464,1723563040574,-544.29753015,0.00013698,2]
[334786465,1723563040586,-544.29753015,0.00013698,2]
[334786466,1723563040597,-544.29753015,0.00013698,2]
[334786467,1723563040609,-544.29753015,0.00013698,2]
[334786468,1723563040620,-544.29753015,0.00013698,2]
[334786469,1723563040632,-544.29753015,0.00013698,2]
[334786470,1723563040646,-544.29753015,0.00013698,2]
[334786471,1723563040658,-544.29753015,0.00013698,2]
[334786472,1723563040670,-544.29753015,0.00013698,2]
[334786473,1723563040683,-544.29753015,0.00013698,2]
[334786474,1723563040695,-544.29753015,0.00013698,2]
[334786475,1723563040706,-544.29753015,0.00013698,2]
[334786476,1723563040718,-544.29753015,0.00013698,2]
[334786477,1723563040730,-500.0,0.00013698,2]
[334786478,1723563040740,-500.0,0.00013698,2]
[334786479,1723563040752,-591.45243883,0.00013698,2]
[334786480,1723563040762,-591.45243883,0.00013698,2]
[334786481,1723563040774,-591.45243883,0.00013698,2]
[334786482,1723563040788,-591.45243883,0.00013698,2]
[334786483,1723563040799,-591.45243883,0.00013698,2]
[334786484,1723563040810,-591.45243883,0.00013698,2]
[334786485,1723563040825,-591.45243883,0.00013698,2]
[334786486,1723563040839,-591.45243883,0.00013698,2]
[334786487,1723563040851,-1383.27,0.00013698,2]